Cogmind - Beta 16 @@@ ROGUE MODE // 2026.02.01 @ 16:27:25 // AFD2020/Player2 Player: naththebg Result: Core destroyed Performance ------------- Evolutions (8) 4000 Regions Visited (19) 3800 Robots Destroyed (285) 1425 Value Destroyed (14765) 14765 Prototype IDs (39) 780 Alien Tech Used (0) 0 Bonus (20853) 20853 TOTAL SCORE: 45623 Bonus ------- Triggered High Security 1000 High Alert Combat Kills 7578 Follower Combat Kills 9443 Entered Garrisons 200 Entered DSFs 500 Met Warlord at Base 500 MAIN.C Attacked Warlord 500 Warlord Defense Kills 1450 Met Warlord at Research 2000 Scanned by Researcher 500 Friendly Fire -2818 Cogmind --------- Core Integrity 0/1450 Matter 49/300 Energy 1050/1100 System Corruption 18% Temperature Cool (0) Movement Treading (153) Location -2/Research Parts ------- > --- POWER (3) -------- Hybrid Antimatter Reactor > --- PROPULSION (6) --- Armored Heavy Treads Advanced Heavy Treads Advanced Heavy Treads > --- UTILITY (10) ----- Advanced Heat Sink Advanced Heat Sink Experimental Heat Sink High-capacity Storage Unit Advanced Target Analyzer Experimental Core Analyzer Improved Weapon Cycler > --- WEAPON (4) ------- Quantum Rifle (fused) Enhanced Quantum Rifle Compact Linear Accelerator > --- INVENTORY (20) --- Hybrid Antimatter Reactor Improved Quantum Reactor Armored Heavy Treads Advanced Heavy Treads Advanced Heavy Treads Experimental Energy Well (600) Heavy Armor Plating Medium Insulated Plating Gamma Rifle Advanced Variable Charge Gun Vortex Rail (40) Vortex Rail (40) Portable AFG (100) Peak State ------------ > --- POWER ------------ Hybrid Antimatter Reactor Vortex Chain Reactor > --- PROPULSION ------- Armored Heavy Treads Advanced Heavy Treads Advanced Heavy Treads > --- UTILITY ---------- Advanced Heat Sink Advanced Heat Sink Experimental Heat Sink High-capacity Storage Unit Advanced Target Analyzer Experimental Core Analyzer Centrium Heavy Armor Plating Improved Powered Armor Advanced Remote Force Field > --- WEAPON ----------- Gamma Rifle Quantum Rifle Enhanced Quantum Rifle Graviton Cannon > --- INVENTORY -------- Hybrid Antimatter Reactor Enhanced Armored Medium Treads Armored Heavy Treads Advanced Heavy Treads Advanced Heavy Treads Experimental Energy Well Improved Weapon Cycler Medium Insulated Plating Improved Remote Shield Advanced Variable Charge Gun Vortex Rail Vortex Rail Gamma Bomb Array Gamma Bomb Array Portable AFG [Rating: 191] Favorites ----------- Power Vortex Chain Reactor Engine Light Deuterium Engine Power Core Light Nuclear Core Reactor Vortex Chain Reactor Propulsion Medium Treads Treads Medium Treads Leg Aluminum Leg Utility Large Storage Unit Device Advanced Heat Sink Storage Large Storage Unit Processor Experimental Core Analyzer Hackware Hacking Suite Protection Reactive Plating Weapon Gamma Rifle Energy Gun Gamma Rifle Energy Cannon Cooled Particle Cannon Ballistic Gun Gauss Rifle Ballistic Cannon Mass Driver Launcher Heavy Rocket Launcher Special Weapon Advanced Remote Datajack Build | -11 -10 -10 -10 -9 -8 -7 -6 -5 -5 -5 -5 -5 -5 -4 -4 -4 -3 -3 -2 ------- Run | Yrd Mat Min Exi Min Mat Fac Fac Fac Gar Fac Upp Upp War Pro Fac DSF Res Tes Res Slots Evolved 16 | . . . . . 4 2 2 2 . . . . . . 2 . 2 . 2 Power 2 | . . . . . . . . . . . . . . . 1 . 1 . . Propulsion 4 | . . . . . 1 . 1 . . . . . . . 1 . . . 1 Utility 8 | . . . . . 2 2 1 1 . . . . . . . . 1 . 1 Weapon 2 | . . . . . 1 . . 1 . . . . . . . . . . . Parts Attached 135 | 7 4 3 . 3 20 13 5 . 3 8 3 3 11 2 2 3 23 12 10 Power 15 | 1 . 1 . . 3 . 1 . 1 1 1 . . 2 1 . 2 . 1 Engine 4 | 1 . . . . 1 . 1 . . . . . . 1 . . . . . Core 6 | . . 1 . . 2 . . . 1 1 . . . 1 . . . . . Reactor 5 | . . . . . . . . . . . 1 . . . 1 . 2 . 1 Propulsion 29 | 3 . . . 1 3 1 2 . . 2 . 2 3 . . 2 5 1 4 Treads 26 | 1 . . . 1 3 1 2 . . 2 . 2 3 . . 2 5 . 4 Leg 3 | 2 . . . . . . . . . . . . . . . . . 1 . Wheel . | . . . . . . . . . . . . . . . . . . . . Hover . | . . . . . . . . . . . . . . . . . . . . Flight . | . . . . . . . . . . . . . . . . . . . . Utility 45 | 1 1 2 . . 9 6 2 . 1 2 2 1 3 . 1 1 8 4 1 Device 20 | . 1 1 . . 3 3 . . . 1 2 1 1 . 1 . 4 1 1 Storage 4 | 1 . . . . 1 . . . . . . . 1 . . 1 . . . Processor 7 | . . . . . 2 1 . . 1 . . . . . . . 3 . . Hackware 1 | . . . . . 1 . . . . . . . . . . . . . . Protection 13 | . . 1 . . 2 2 2 . . 1 . . 1 . . . 1 3 . Artifact . | . . . . . . . . . . . . . . . . . . . . Weapon 46 | 2 3 . . 2 5 6 . . 1 3 . . 5 . . . 8 7 4 Energy Gun 17 | 2 1 . . . 2 . . . . . . . 1 . . . 6 3 2 Energy Cannon 5 | . . . . . 1 1 . . 1 . . . . . . . 1 . 1 Ballistic Gun 5 | . 1 . . . 1 2 . . . 1 . . . . . . . . . Ballistic Cannon 11 | . . . . 1 1 2 . . . 1 . . 4 . . . . 1 1 Launcher 7 | . 1 . . 1 . 1 . . . 1 . . . . . . . 3 . Special Weapon 1 | . . . . . . . . . . . . . . . . . 1 . . Impact Weapon . | . . . . . . . . . . . . . . . . . . . . Slashing Weapon . | . . . . . . . . . . . . . . . . . . . . Piercing Weapon . | . . . . . . . . . . . . . . . . . . . . Special Melee Weapon . | . . . . . . . . . . . . . . . . . . . . Unidentified Prototypes 24 | . . 1 . . 2 1 . . 1 3 . . 3 . 1 . 2 8 2 Parts Lost 21 | . . . . 1 . 1 . . . . . 3 1 1 . . 3 6 5 Power 3 | . . . . . . . . . . . . 1 . 1 . . . . 1 Propulsion 2 | . . . . 1 . . . . . . . 1 . . . . . . . Utility 9 | . . . . . . 1 . . . . . 1 1 . . . 2 1 3 Weapon 7 | . . . . . . . . . . . . . . . . . 1 5 1 Highest Loss Streak 3 | . . . . 1 . 1 . . . . . 2 1 1 . . 1 3 2 To Critical Strikes 1 | . . . . . . . . . . . . . . . . . . 1 . Average Backups 12 | 4 4 7 8 7 12 13 13 12 12 13 13 13 12 11 11 12 15 15 13 Power . | . 1 1 1 1 1 . . . . 1 1 . 1 1 1 2 1 1 1 Propulsion 2 | 2 2 1 2 1 1 3 3 3 3 3 3 2 2 2 2 2 3 4 3 Utility 4 | . . 1 2 2 6 5 6 6 5 4 5 5 5 4 4 4 6 5 3 Weapon 3 | . . 2 2 2 3 4 3 3 3 4 4 4 4 3 3 3 5 4 4 Tool/Special . | . . . . . . . . . . . . . . . . . . . . Unused Backups 39 | . 2 . . . 6 8 1 . . 1 . 1 7 . . 1 1 1 10 Power 5 | . . . . . 1 2 . . . . . . 1 . . . . . 1 Propulsion 13 | . 2 . . . 1 1 . . . . . 1 1 . . 1 . . 6 Utility 13 | . . . . . 3 1 . . . 1 . . 4 . . . 1 1 2 Weapon 7 | . . . . . 1 4 . . . . . . 1 . . . . . 1 Tool/Special 1 | . . . . . . . 1 . . . . . . . . . . . . Average Slot Usage (%) 89 | . 86 100 100 99 96 99 92 93 94 94 94 94 91 83 73 69 74 78 74 Engine 2 | . 14 10 . . 2 6 6 5 3 . . . . . . . . . . Core 2 | . . 3 14 14 6 . . . 1 5 . 3 5 3 . . . . . Reactor 2 | . . . . . . . . . . . 4 1 . . 4 5 9 9 7 Treads 18 | . . . . 10 26 23 26 23 23 23 23 23 23 23 25 22 13 13 13 Leg 3 | . 28 28 28 17 . . . . . . . . . . . . . . . Device 14 | . 4 2 . . 4 14 13 16 17 16 17 23 22 23 15 15 16 17 17 Storage 6 | . 14 14 14 14 9 7 6 5 5 5 5 5 5 5 9 10 5 4 4 Processor 4 | . . . . . 7 . . . . 5 5 5 5 5 5 5 8 9 8 Protection 11 | . . 11 14 14 14 22 19 17 16 11 10 5 4 5 5 5 4 5 6 Energy Gun 4 | . 4 13 14 3 . . . . . . . . . . . . 13 15 9 Energy Cannon 1 | . . . . . 4 . . . 1 4 3 . . . . . . . 1 Ballistic Gun 4 | . 12 13 14 10 8 7 6 5 5 7 5 5 1 . . . . . . Ballistic Cannon 7 | . . . . 2 12 13 12 17 14 8 11 16 17 10 . . . . 1 Launcher 1 | . 8 . . 11 . . . . . . . . 1 1 5 5 . 1 1 Peak Build Rating 191 | 6 8 16 11 11 34 47 54 66 76 87 87 89 110 107 118 125 167 182 191 Average Rating 84 | 3 6 10 11 10 26 44 51 65 68 81 86 86 97 102 105 112 155 168 181 On Entrance 67 | . 6 7 11 11 10 33 45 54 66 76 86 85 89 107 99 106 125 167 176 Avg Prop Armor Cover (%) 3 | . . . . . 4 . . . . . . . . . . 4 2 2 . Naked Turns . | . . . . . . . . . . . . . . . . . . . . Heaviest Build 183 | 11 14 18 18 19 54 71 89 99 101 101 101 91 114 117 109 129 156 183 183 Greatest Support 200 | 20 20 20 20 40 68 73 91 101 101 109 109 109 113 113 141 147 170 170 200 Greatest Overweight (x) 2 | . . . . . . 1 . . . . . . 1 1 . 1 1 2 1 Average Overweight (x) . | . . . . . . . . . . . . . . . . . . . . Largest Inventory Capacity 20 | 8 8 8 8 8 15 15 15 15 15 15 15 15 15 15 15 20 20 20 20 Average Capacity 15 | 6 8 8 8 8 14 15 15 15 15 15 15 15 15 15 15 16 20 20 20 Most Carried 20 | 6 7 8 8 8 15 15 15 14 15 15 15 15 15 15 15 20 20 20 19 Average Carried 14 | 4 4 7 8 7 13 14 14 13 13 14 14 14 14 14 14 16 19 19 17 Final Capacity 20 | 8 8 8 8 8 15 15 15 15 15 15 15 15 15 15 15 20 20 20 20 Final Carried 20 | 6 7 8 8 7 15 15 15 13 15 15 14 15 14 15 15 20 20 18 17 Class Distribution -------------------- 31% | Tank 29% | Scavenger-Tank 19% | Mutant 11% | Scavenger-Gunner 4% | Gunner 3% | Scavenger-Mutant Dominant Class ---------------- Mutant | -10/Materials Mutant | -10/Mines Mutant | -10/Exiles Mutant | -9/Mines Tank | -8/Materials Tank | -7/Factory Tank | -6/Factory Tank | -5/Factory Tank | -5/Garrison Scavenger-Tank | -5/Factory Scavenger-Tank | -5/Upper Caves Scavenger-Gunner | -5/Upper Caves Scavenger-Gunner | -5/Warlord Scavenger-Gunner | -4/Proximity Caves Scavenger-Mutant | -4/Factory Mutant | -4/DSF Scavenger-Tank | -3/Research Scavenger-Tank | -3/Testing Scavenger-Tank | -2/Research Resources | -11 -10 -10 -10 -9 -8 -7 -6 -5 -5 -5 -5 -5 -5 -4 -4 -4 -3 -3 -2 ----------- Run | Yrd Mat Min Exi Min Mat Fac Fac Fac Gar Fac Upp Upp War Pro Fac DSF Res Tes Res Matter Collected 7196 | 249 147 264 . 327 634 828 633 . 441 630 268 257 342 295 . 205 636 312 728 Remotely 113 | . 15 98 . . . . . . . . . . . . . . . . . Salvage Created 13340 | . 178 77 . 83 699 843 311 . 327 670 487 291 352 333 . 257 2544 3107 2781 Parts 505 | . 12 8 . 8 34 44 11 . 15 31 18 8 8 9 . 5 84 101 109 Haulers Intercepted 10 | . . . . . 3 2 . . . 1 . . . . . . 2 1 1 Recyclers Shooed 7 | . . . . . 1 3 . . . 1 . . . . . . 2 . . Parts Field Recycled . | . . . . . . . . . . . . . . . . . . . . Retrieved Matter . | . . . . . . . . . . . . . . . . . . . . Parts Self-Destructed 32 | . . . . . . . . . . . 15 10 . 7 . . . . . Prevented 8 | . . . . . . . . . . . 7 1 . . . . . . . Parts Restored . | . . . . . . . . . . . . . . . . . . . . Kills | -11 -10 -10 -10 -9 -8 -7 -6 -5 -5 -5 -5 -5 -5 -4 -4 -4 -3 -3 -2 ------- Run | Yrd Mat Min Exi Min Mat Fac Fac Fac Gar Fac Upp Upp War Pro Fac DSF Res Tes Res Combat Hostiles Destroyed 223 | . 5 4 . 8 11 13 5 . 12 12 12 7 10 7 . 4 24 48 41 Melee 1 | . . . . . . 1 . . . . . . . . . . . . . Guns 68 | . 1 1 . 1 4 4 2 . 3 1 3 1 . . . . 13 16 18 Cannons 56 | . . . . . 7 5 3 . 6 8 6 5 5 4 . . . 1 6 AOE 62 | . 4 3 . 7 . 3 . . 3 3 3 1 5 3 . 4 1 18 4 Classes Destroyed 24 | . 4 . . 1 5 2 2 . 3 1 . 1 1 . . 1 2 1 . Worker 15 | . . . . . 2 3 . . . 2 . . . . . . 5 3 . Builder 9 | . . . . . . 1 . . . 1 . . . . . . 1 6 . Tunneler 1 | . . . . . . 1 . . . . . . . . . . . . . Hauler 10 | . . . . . 3 2 . . . 1 . . . . . . 2 1 1 Recycler 8 | . 1 . . . . 3 1 . . 1 . . . . . . . 2 . Carrier 2 | . . . . . . . . . . . . . . . . . 2 . . Mechanic 5 | . . . . . . . 1 . . . . . . . . . . 3 1 Operator 3 | . 1 . . . . 1 . . . . . . . . . . 1 . . Watcher 7 | . . . . . 2 . . . . 1 . . . . . . 2 2 . Swarmer 31 | . 3 3 . 5 1 2 1 . 6 3 4 . . 3 . . . . . Saboteur 8 | . . . . . . . . . . . . . . . . . 1 4 3 Grunt 84 | . 2 1 . 1 7 8 1 . 2 1 7 4 6 . . 3 11 23 7 Brawler 7 | . . . . . . . . . . . . 1 . . . . . 3 3 Duelist 9 | . . . . . 1 . . . . . . . . . . . 2 3 3 Protector 8 | . . . . . . . . . 1 . . . . . . . 1 2 4 Researcher 3 | . . . . . . . . . . . . . . . . . . 3 . Sentry 14 | . . . . . 2 3 2 . 1 1 . 2 . . . . 1 1 1 Specialist 1 | . . . . . . . . . . . . . . . . 1 . . . Hunter 24 | . . . . . . . . . . 2 1 . . 4 . . 5 5 7 Programmer 20 | . . . . . . . 1 . . 4 . . . . . . 3 5 7 Behemoth 4 | . . . . . . . . . 1 1 . . 2 . . . . . . Investigator 1 | . . . . . . . . . . . . . . . . . . 1 . Striker 4 | . . . . . . . . . . . . . 1 . . . . . 3 Executioner 6 | . . . . . . . . . 1 . . . 1 . . . . 1 3 Protovariant G 1 | . . . . . . . . . . . . . . . . . . 1 . Assembled 3 | . . . . 3 . . . . . . . . . . . . . . . Best Kill Streak 18 | . 3 2 . 5 5 5 2 . 3 4 4 3 10 3 . 4 7 18 10 Combat Bots Only 17 | . 3 2 . 5 3 3 1 . 3 3 4 3 10 3 . 4 5 17 10 Max Kills in Single Turn 5 | . 3 2 . 2 2 3 1 . 3 2 3 1 4 3 . 2 2 5 2 Gunslinging . | . . . . . . . . . . . . . . . . . . . . Exploded 5 | . 3 2 . 2 . 3 . . 3 2 3 1 3 3 . 2 1 5 1 Melee 1 | . . . . . . 1 . . . . . . . . . . . . . Uniques/NPCs Destroyed . | . . . . . . . . . . . . . . . . . . . . Combat | -11 -10 -10 -10 -9 -8 -7 -6 -5 -5 -5 -5 -5 -5 -4 -4 -4 -3 -3 -2 -------- Run | Yrd Mat Min Exi Min Mat Fac Fac Fac Gar Fac Upp Upp War Pro Fac DSF Res Tes Res Hostile Shots Fired 934 | . 9 17 . 18 33 48 46 . 41 31 35 25 52 40 . 10 129 247 153 Missed 281 | . 5 7 . 3 10 15 23 . 12 12 17 8 16 12 . 2 29 69 41 Hits 653 | . 4 10 . 15 23 33 23 . 29 19 18 17 36 28 . 8 100 178 112 Melee 8 | . . . . . . . . . . . . . 1 . . . . 1 6 Projectile 645 | . 4 10 . 15 23 33 23 . 29 19 18 17 35 28 . 8 100 177 106 AOE 8 | . . . . . . 3 . . 3 . . . . . . . 1 1 . Critical Strikes 32 | . . . . . 2 . . . . 2 . 1 1 1 . . 6 10 9 Part Disruptions 5 | . . . . 1 . . . . . . . . . . . 3 . 1 . Damage Taken 12427 | . 84 173 . 189 306 551 88 . 675 453 317 590 870 798 . 44 1431 3113 2745 Core 757 | . . 27 . 44 32 66 . . 69 . 35 . 51 39 . . 36 277 81 Absorbed by Shields 3596 | . . . . . . 44 72 . 80 4 . . . . . 43 964 1397 992 Reduced by Siege Mode 391 | . . . . . . . . . . . . . . . . . 60 189 142 Ignored by Resistances 365 | . . . . . 63 62 39 . 133 46 22 . . . . . . . . Regen/Repaired (Parts) 404 | . . . . . 86 42 84 . . . . . 80 . . . . . 112 Core Remaining (%) 71 | 100 . . . 36 94 69 95 . . . . . . 42 . 98 . 41 . Volleys Fired 597 | . 24 13 . 12 42 53 15 . 34 30 12 14 14 31 . 9 97 86 111 Largest 4 | . 1 2 . 2 3 3 3 . 4 4 4 4 2 1 . 1 4 4 4 Hottest 347 | . 30 85 . 65 135 112 112 . 159 154 161 161 115 76 . 76 319 334 347 Shots Fired 1383 | . 24 21 . 18 107 150 44 . 97 95 45 44 18 31 . 9 241 190 249 Gun 780 | . 21 16 . 5 35 49 15 . 24 28 11 12 . . . . 233 158 173 Cannon 500 | . . . . 4 72 98 29 . 71 65 33 29 14 30 . 2 . 6 47 Launcher 101 | . 3 5 . 9 . 3 . . 2 2 1 3 4 1 . 7 6 26 29 Special 2 | . . . . . . . . . . . . . . . . . 2 . . Kinetic 630 | . 21 8 . 8 86 147 44 . 84 71 37 41 13 30 . 2 . 6 32 Thermal 297 | . . 8 . 1 21 . . . 11 22 7 . 1 . . . 30 36 160 Explosive 46 | . 3 5 . 9 . 3 . . 2 2 1 3 4 1 . 7 6 . . Electromagnetic 400 | . . . . . . . . . . . . . . . . . 203 140 57 Entropic 8 | . . . . . . . . . . . . . . . . . . 8 . Robot Hit Streak 17 | . 4 4 . 2 10 11 14 . 13 6 8 13 5 7 . 12 17 16 15 Robot Miss Streak 9 | . 3 2 . 2 6 5 3 . 9 4 2 3 1 3 . . 5 5 7 Penetration Max 1 | . . . . . . 1 . . 1 . . . . . . . . . . Secondary Targets 16 | . . 1 . . . . . . . . . . . . . . 4 7 4 Max Gunslinging Chain 1 | . . 1 . . . . . . . . . . . . . . 1 1 1 Shots Hit Robots 885 | . 16 9 . 4 62 89 29 . 52 43 21 28 12 19 . 7 179 140 175 Core Hits 680 | 1 10 6 . 13 30 33 12 . 21 22 17 19 25 9 . 18 79 183 182 Critical Kills . | . . . . . . . . . . . . . . . . . . . . Critical Parts Destroyed 2 | . . . . . . 1 . . 1 . . . . . . . . . . Critical Strikes 51 | . . . . . 4 4 3 . 1 . 2 1 1 4 . 1 14 9 7 Destroy 2 | . . . . . . 1 . . 1 . . . . . . . . . . Blast 20 | . . . . . 4 3 3 . . . 2 1 1 4 . 1 . . 1 Corrupt 29 | . . . . . . . . . . . . . . . . . 14 9 6 Melee Attacks . | . . . . . . . . . . . . . . . . . . . . Impact . | . . . . . . . . . . . . . . . . . . . . Slashing . | . . . . . . . . . . . . . . . . . . . . Piercing . | . . . . . . . . . . . . . . . . . . . . Sneak Attacks . | . . . . . . . . . . . . . . . . . . . . Combat Hostiles . | . . . . . . . . . . . . . . . . . . . . Follow-up Attacks . | . . . . . . . . . . . . . . . . . . . . Damage Inflicted 41782 | 2 398 287 . 391 1245 2936 815 . 1640 1597 891 1274 1999 1704 . 1327 5183 11241 8852 Guns 15587 | . 185 131 . 34 396 791 246 . 342 337 236 188 . . . . 4716 3939 4046 Cannons 10250 | . . . . 16 848 1727 569 . 1071 1053 389 564 849 1488 . 177 . 104 1395 Explosions 15766 | . 213 148 . 335 . 358 . . 227 207 266 522 1150 216 . 1150 453 7138 3383 Melee . | . . . . . . . . . . . . . . . . . . . . Ramming 179 | 2 . 8 . 6 1 60 . . . . . . . . . . 14 60 28 Kinetic 11865 | . 185 40 . 37 977 2518 815 . 1250 1105 597 752 849 1488 . 177 . 104 971 Thermal 7927 | . . 91 . 13 267 . . . 163 285 28 . . . . . 740 1813 4527 Explosive 5245 | . 213 148 . 335 . 358 . . 227 207 266 522 1150 216 . 1150 453 . . Electromagnetic 13602 | . . . . . . . . . . . . . . . . . 3976 6300 3326 Impact . | . . . . . . . . . . . . . . . . . . . . Slashing . | . . . . . . . . . . . . . . . . . . . . Piercing . | . . . . . . . . . . . . . . . . . . . . Entropic 2964 | . . . . . . . . . . . . . . . . . . 2964 . Highest Corruption 18 | . . . . . 3 1 . . . 2 2 1 1 . . . 6 18 18 Average Corruption 4 | . . . . . 2 1 . . . 1 1 1 1 . . . 4 11 12 Corruption Purged 5 | . . . . . 3 . . . . . 2 . . . . . . . . Corruption Blocked . | . . . . . . . . . . . . . . . . . . . . Effects 153 | . . . . . 6 8 . . . 5 10 2 1 . . . 55 47 19 Message Errors 44 | . . . . . 2 1 . . . 3 4 1 . . . . 16 13 4 Matter Fused 33 | . . . . . 1 5 . . . . 2 . . . . . 9 11 5 Heat Flow Errors 13 | . . . . . . . . . . 1 1 . . . . . 6 5 . Energy Discharges 20 | . . . . . . 1 . . . . 1 . . . . . 8 8 2 Parts Rejected 3 | . . . . . . . . . . . . . . . . . 2 . 1 Parts Fused 4 | . . . . . . . . . . . 1 . . . . . 1 1 1 Data Loss (minor) 13 | . . . . . 1 . . . . . 1 . . . . . 6 3 2 Data Loss (major) 4 | . . . . . 1 . . . . . . . 1 . . . . 2 . Misfires 5 | . . . . . . 1 . . . . . 1 . . . . 2 1 . Alerts 3 | . . . . . 1 . . . . 1 . . . . . . . . 1 Weapon Failures 11 | . . . . . . . . . . . . . . . . . 5 3 3 Overload Shots 8 | . . . . . . . . . . 1 . . 1 . . . . 6 . Overflow Damage 733 | . . . . 2 . 27 . . 24 56 . 20 2 153 . 11 17 245 176 Projectiles 406 | . . . . . . 25 . . 24 56 . 20 . 153 . . . 22 106 Explosions 327 | . . . . 2 . 2 . . . . . . 2 . . 11 17 223 70 Melee . | . . . . . . . . . . . . . . . . . . . . Knockbacks 46 | . . . . . 2 9 1 . 14 3 3 2 3 4 . . . 3 2 Impact 1 | . . . . . . . . . . . . . . . . . . 1 . Kinetic 41 | . . . . . 2 8 1 . 12 3 3 2 3 4 . . . 1 2 Secondary 4 | . . . . . . 1 . . 2 . . . . . . . . 1 . Self-Inflicted Damage 365 | . . 39 . 58 . . . . . . . . . 38 . . . 11 219 Shots 26 | . . 1 . 4 . . . . . . . . . 1 . . . 1 19 Rammed 15 | . . . . 1 1 5 . . . . . . . . . . 1 3 4 Targets Rammed 21 | 1 . 2 . 1 1 6 . . . . . . . . . . 2 4 4 Kicked 3 | 1 . 2 . . . . . . . . . . . . . . . . . Crushed 3 | . . . . . . 1 . . . . . . . . . . 1 1 . Highest Temperature 665 | . . 183 . 76 331 289 3 . 180 201 201 391 342 253 . 665 354 382 242 Average Temperature 99 | . . 74 . 18 96 106 3 . 58 58 81 125 155 106 . 228 94 132 80 Received Heat Transfer 1834 | . 45 75 . 40 135 187 48 . 55 36 54 461 138 36 . . 127 317 80 Effects 9 | . . . . . . . . . . . . 2 1 . . 4 . 2 . Shutdowns 1 | . . . . . . . . . . . . . 1 . . . . . . Interference 2 | . . . . . . . . . . . . 1 . . . . . 1 . Matter Decay 2 | . . . . . . . . . . . . 1 . . . 1 . . . Short Circuit 1 | . . . . . . . . . . . . . . . . 1 . . . Damage (minor) 1 | . . . . . . . . . . . . . . . . . . 1 . Damage (major) 2 | . . . . . . . . . . . . . . . . 2 . . . Siege Activations 23 | . . . . . . . . . . . . . . . . . 9 7 7 Total Turns 423 | . . . . . . . . . . . . . . . . . 145 125 153 Longest Duration 72 | . . . . . . . . . . . . . . . . . 72 35 43 Martial Activations . | . . . . . . . . . . . . . . . . . . . . Shielding Activations . | . . . . . . . . . . . . . . . . . . . . Robots Disrupted 3 | . . . . . . . . . . . . . . . . . . 2 1 Combat Hostiles 3 | . . . . . . . . . . . . . . . . . . 2 1 Robots Corrupted 41 | . . . . . . . . . . . . . . . . . 13 15 13 Combat Hostiles 36 | . . . . . . . . . . . . . . . . . 10 13 13 Parts Fried 98 | . . . . . . . . . . . . . . . . . 35 32 31 Impact Corruptions 1 | . . . . . . . . . . . . . . . . . . 1 . Robots Melted . | . . . . . . . . . . . . . . . . . . . . Combat Hostiles . | . . . . . . . . . . . . . . . . . . . . Parts Melted 6 | . . . . . . . 1 . . . . . . . . . . 2 3 Heat Transferred 8475 | . . 222 . 37 481 . . . 222 370 37 . . . . . 851 1551 4704 Parts Sabotaged . | . . . . . . . . . . . . . . . . . . . . Parts Stolen . | . . . . . . . . . . . . . . . . . . . . Parts Stripped . | . . . . . . . . . . . . . . . . . . . . Power Chain Reactions 10 | . . . . . . . . . . . . . . . . . . 4 6 Alert | -11 -10 -10 -10 -9 -8 -7 -6 -5 -5 -5 -5 -5 -5 -4 -4 -4 -3 -3 -2 ------- Run | Yrd Mat Min Exi Min Mat Fac Fac Fac Gar Fac Upp Upp War Pro Fac DSF Res Tes Res Maximum Alert Level 5 | . . 1 . 1 2 3 2 1 3 4 . . . . . 2 5 5 5 Low Security (%) 33 | 100 100 93 . 97 82 32 . 90 19 . . . . . 100 18 . . . Level 1 15 | . . 6 . 2 11 25 77 9 4 21 . . . . . 30 20 . . Level 2 15 | . . . . . 6 37 22 . 39 22 . . . . . 51 12 . . Level 3 12 | . . . . . . 4 . . 36 41 . . . . . . 13 47 . Level 4 8 | . . . . . . . . . . 14 . . . . . . 42 15 . Level 5 2 | . . . . . . . . . . . . . . . . . 10 11 3 High Security 10 | . . . . . . . . . . . . . . . . . . 25 96 Max Security . | . . . . . . . . . . . . . . . . . . . . Sterilizations 1 | . . . . . . . . . . . . . . . . 1 . . . Peak Influence 4890 | . 190 221 . 207 453 849 482 219 874 1184 . . . . 32 455 1791 4795 4890 Initial 2691 | . . 49 . . 39 124 415 219 2 458 . . . . 32 3 255 1002 2691 Average 813 | . 72 90 . 64 116 364 346 47 531 751 . . . . 5 342 990 1820 3471 Influence Increases 16904 | . 253 403 . 263 784 1413 406 14 932 1156 486 349 463 279 17 452 2274 4421 2539 Destroy 0b10 Robot/C 8480 | . 120 200 . 140 400 660 200 . 560 340 360 260 380 180 . 220 1260 1900 1300 Destroy 0b10 Robot/NC 690 | . 20 . . . 60 100 20 . 5 60 . . . 5 . 15 120 235 50 Destroy Leader 1358 | . 32 40 . 20 108 158 50 . 40 98 30 20 . 40 . 30 250 240 202 Allied During Kill 2599 | . 40 95 . 47 130 243 64 . 169 115 96 69 83 54 . 64 387 568 375 Successful Hack 167 | . 5 . . . 21 4 7 14 21 27 . . . . 17 . 24 27 . Disable Machine 870 | . 15 30 . . 60 165 45 . 15 210 . . . . . 15 45 225 45 Destroy Structure 2695 | . 21 38 . 56 5 83 20 . 122 306 . . . . . 108 188 1196 552 Lose Combat Pursuer 45 | . . . . . . . . . . . . . . . . . . 30 15 Influence Decreases 12014 | . 125 390 141 160 612 839 806 459 62 870 884 594 669 537 65 2 946 1419 2434 Entered New Map 6019 | . . 79 141 . 64 151 434 230 2 416 430 146 517 311 21 2 200 781 2094 Time Decay 4523 | . 125 311 . 138 378 598 342 79 . 404 434 368 62 216 44 . 636 368 20 Lost Part 890 | . . . . 10 20 50 30 . 40 10 20 80 70 10 . . 110 120 320 Lost Ally 132 | . . . . 12 . 40 . . 20 40 . . 20 . . . . . . Purge Threat 450 | . . . . . 150 . . 150 . . . . . . . . . 150 . Squads Dispatched 65 | . 1 . . . 1 18 2 . . 4 . 1 . . . 2 14 21 1 Investigation 2 | . . . . . . 2 . . . . . . . . . . . . . Extermination 12 | . . . . . . 4 1 . . 3 . . . . . . 3 1 . Reinforcement 20 | . 1 . . . . 3 1 . . . . . . . . 2 5 7 1 Assault 20 | . . . . . . 3 . . . 1 . 1 . . . . 3 12 . Garrison 11 | . . . . . 1 6 . . . . . . . . . . 3 1 . Intercept . | . . . . . . . . . . . . . . . . . . . . Searches Triggered . | . . . . . . . . . . . . . . . . . . . . Construction Impeded 5 | . . . . . . . 1 . . . . . . . . . 2 2 . Haulers Reinforced 2 | . . . . . . . . . . . . . . . . . . 1 1 Active Scanning Responses . | . . . . . . . . . . . . . . . . . . . . Cargo Convoy Interrupts 1 | . . . . . . 1 . . . . . . . . . . . . . Stealth | -11 -10 -10 -10 -9 -8 -7 -6 -5 -5 -5 -5 -5 -5 -4 -4 -4 -3 -3 -2 --------- Run | Yrd Mat Min Exi Min Mat Fac Fac Fac Gar Fac Upp Upp War Pro Fac DSF Res Tes Res Distress Signals 19 | . 1 . . . 2 1 . . 1 . . . 2 . . . 2 2 8 Communications Jammed . | . . . . . . . . . . . . . . . . . . . . Distress Signals . | . . . . . . . . . . . . . . . . . . . . Times Spotted 490 | . 8 10 . 13 26 42 13 . 26 17 20 13 27 8 . 9 74 105 79 Peak Tracking Total 18 | . 3 3 . 4 4 5 4 . 5 3 7 5 17 4 . 3 6 18 10 Tactical Retreats 3 | . . . . . . . . . . . . . . . . . . 2 1 Traps | -11 -10 -10 -10 -9 -8 -7 -6 -5 -5 -5 -5 -5 -5 -4 -4 -4 -3 -3 -2 ------- Run | Yrd Mat Min Exi Min Mat Fac Fac Fac Gar Fac Upp Upp War Pro Fac DSF Res Tes Res Traps Triggered 4 | . . . . . 1 1 . . 2 . . . . . . . . . . Indirectly . | . . . . . . . . . . . . . . . . . . . . Trap Hack Attempts . | . . . . . . . . . . . . . . . . . . . . Triggered . | . . . . . . . . . . . . . . . . . . . . Disarmed . | . . . . . . . . . . . . . . . . . . . . Reprogrammed . | . . . . . . . . . . . . . . . . . . . . Reused . | . . . . . . . . . . . . . . . . . . . . Traps Extracted . | . . . . . . . . . . . . . . . . . . . . Installed . | . . . . . . . . . . . . . . . . . . . . Triggered . | . . . . . . . . . . . . . . . . . . . . Machines | -11 -10 -10 -10 -9 -8 -7 -6 -5 -5 -5 -5 -5 -5 -4 -4 -4 -3 -3 -2 ---------- Run | Yrd Mat Min Exi Min Mat Fac Fac Fac Gar Fac Upp Upp War Pro Fac DSF Res Tes Res Machines Disabled 69 | . 1 2 . . 4 11 3 . 2 14 2 1 1 . . 1 3 21 3 Max in Single Turn 1 | . 1 1 . . 1 . . . 1 . . 1 1 . . 1 1 1 . Machines Repaired . | . . . . . . . . . . . . . . . . . . . . Machines Dismantled . | . . . . . . . . . . . . . . . . . . . . Machines Sabotaged . | . . . . . . . . . . . . . . . . . . . . Overloaded Fab Kills . | . . . . . . . . . . . . . . . . . . . . Hacking | -11 -10 -10 -10 -9 -8 -7 -6 -5 -5 -5 -5 -5 -5 -4 -4 -4 -3 -3 -2 --------- Run | Yrd Mat Min Exi Min Mat Fac Fac Fac Gar Fac Upp Upp War Pro Fac DSF Res Tes Res Machines Accessed 55 | . 3 . 1 . 7 12 2 3 2 8 1 . 2 . 5 . 5 4 . Terminals 26 | . 2 . . . 4 4 1 2 2 3 1 . . . 2 . 1 4 . Fabricators 5 | . . . . . . 2 . . . 1 . . . . 2 . . . . Repair Stations 5 | . . . . . 2 1 1 . . . . . . . 1 . . . . Recycling Units 7 | . 1 . . . . 2 . . . 3 . . . . . . 1 . . Scanalyzers 6 | . . . . . 1 1 . . . 1 . . . . . . 3 . . Garrison Access 3 | . . . . . . 2 . 1 . . . . . . . . . . . Total Hacks 115 | . 7 . 4 . 16 20 5 8 3 18 4 . 6 . 10 . 9 5 . Successful 59 | . 3 . 4 . 9 8 4 2 2 7 4 . 6 . 4 . 4 2 . Failed 53 | . 4 . . . 6 11 1 6 1 11 . . . . 6 . 4 3 . Catastrophic 14 | . . . . . . 4 1 1 . 3 . . . . 1 . 2 2 . Database Lockouts 3 | . . . . . 1 1 . . . . . . . . . . 1 . . Manual 27 | . 5 . . . 6 3 2 . . 4 . . . . 3 . 1 3 . Terminals 60 | . 6 . . . 10 6 3 7 3 10 4 . . . 4 . 2 5 . Fabricators 9 | . . . . . . 3 . . . 1 . . . . 5 . . . . Repair Stations 10 | . . . . . 4 3 2 . . . . . . . 1 . . . . Recycling Units 9 | . 1 . . . . 2 . . . 5 . . . . . . 1 . . Scanalyzers 13 | . . . . . 2 3 . . . 2 . . . . . . 6 . . Garrison Access 4 | . . . . . . 3 . 1 . . . . . . . . . . . Terminal Hacks 30 | . 1 . 4 . 4 . 2 1 2 2 4 . 6 . 1 . 1 2 . Record 9 | . . . 4 . . . . . . . 4 . . . . . 1 . . Robot Analysis 1 | . 1 . . . . . . . . . . . . . . . . . . Prototype ID Bank 6 | . . . . . . . . . . . . . 5 . . . . 1 . Open Door 2 | . . . . . . . . . 1 . . . 1 . . . . . . Open DSF 1 | . . . . . . . . . . . . . . . 1 . . . . Branch Access Points 3 | . . . . . 1 . 1 . . 1 . . . . . . . . . Emergency Access Points 1 | . . . . . . . . . 1 . . . . . . . . . . Scanalyzer Index 1 | . . . . . 1 . . . . . . . . . . . . . . Alert Level 3 | . . . . . 1 . 1 . . 1 . . . . . . . . . Unreport Threat 3 | . . . . . 1 . . 1 . . . . . . . . . 1 . Fabricator Hacks 2 | . . . . . . 1 . . . . . . . . 1 . . . . Network Status 1 | . . . . . . . . . . . . . . . 1 . . . . Build 1 | . . . . . . 1 . . . . . . . . . . . . . Repair Station Hacks 7 | . . . . . 3 2 2 . . . . . . . . . . . . Scan Component 4 | . . . . . 2 1 1 . . . . . . . . . . . . Repair 3 | . . . . . 1 1 1 . . . . . . . . . . . . Recycling Unit Hacks 6 | . 1 . . . . 2 . . . 3 . . . . . . . . . Retrieve Components 6 | . 1 . . . . 2 . . . 3 . . . . . . . . . Scanalyzer 6 | . . . . . 1 1 . . . 1 . . . . . . 3 . . Retrieve Study 6 | . . . . . 1 1 . . . 1 . . . . . . 3 . . Garrison Access Hacks 1 | . . . . . . . . 1 . . . . . . . . . . . Unlock Access 1 | . . . . . . . . 1 . . . . . . . . . . . Unauthorized Hacks 7 | . 1 . . . 1 2 . . . 1 . . . . 2 . . . . Terminals 3 | . 1 . . . 1 . . . . 1 . . . . . . . . . Botnet 3 | . 1 . . . 1 . . . . 1 . . . . . . . . . Fabricators 4 | . . . . . . 2 . . . . . . . . 2 . . . . Liberate 4 | . . . . . . 2 . . . . . . . . 2 . . . . Repair Stations . | . . . . . . . . . . . . . . . . . . . . Recycling Units . | . . . . . . . . . . . . . . . . . . . . Scanalyzers . | . . . . . . . . . . . . . . . . . . . . Garrison Access . | . . . . . . . . . . . . . . . . . . . . Data Cores Recovered 1 | . . . . . 1 . . . . . . . . . . . . . . Used . | . . . . . . . . . . . . . . . . . . . . Hacking Detections 44 | . 2 . . . 6 9 2 2 1 7 1 . . . 5 . 5 4 . Full Trace Events 2 | . . . . . . 1 . . . . 1 . . . . . . . . Feedback Events . | . . . . . . . . . . . . . . . . . . . . Feedback Blocked . | . . . . . . . . . . . . . . . . . . . . Robot Schematics Acquired . | . . . . . . . . . . . . . . . . . . . . Robots Built . | . . . . . . . . . . . . . . . . . . . . Authchips . | . . . . . . . . . . . . . . . . . . . . Time . | . . . . . . . . . . . . . . . . . . . . Total Robot Build Rating . | . . . . . . . . . . . . . . . . . . . . Part Schematics Acquired . | . . . . . . . . . . . . . . . . . . . . Parts Built 2 | . . . . . . 2 . . . . . . . . . . . . . Authchips . | . . . . . . . . . . . . . . . . . . . . Time 106 | . . . . . . 106 . . . . . . . . . . . . . Total Part Build Rating 12 | . . . . . . 12 . . . . . . . . . . . . . Part Studies Acquired 6 | . . . . . 1 1 . . . 1 . . . . . . 3 . . Parts Repaired 3 | . . . . . 1 1 1 . . . . . . . . . . . . Time 120 | . . . . . 26 38 56 . . . . . . . . . . . . Parts Recycled . | . . . . . . . . . . . . . . . . . . . . Recycled Matter . | . . . . . . . . . . . . . . . . . . . . Retrieved Matter . | . . . . . . . . . . . . . . . . . . . . Retrieved Components 15 | . 1 . . . . 13 . . . 1 . . . . . . . . . Parts Scanalyzed . | . . . . . . . . . . . . . . . . . . . . Part Schematics Acquired . | . . . . . . . . . . . . . . . . . . . . Parts Damaged . | . . . . . . . . . . . . . . . . . . . . Bothacking | -11 -10 -10 -10 -9 -8 -7 -6 -5 -5 -5 -5 -5 -5 -4 -4 -4 -3 -3 -2 ------------ Run | Yrd Mat Min Exi Min Mat Fac Fac Fac Gar Fac Upp Upp War Pro Fac DSF Res Tes Res Used RIF Installer . | . . . . . . . . . . . . . . . . . . . . Robots Hacked . | . . . . . . . . . . . . . . . . . . . . Non-combat . | . . . . . . . . . . . . . . . . . . . . Combat . | . . . . . . . . . . . . . . . . . . . . Robot Hacks Applied . | . . . . . . . . . . . . . . . . . . . . Relay Couplers Released . | . . . . . . . . . . . . . . . . . . . . Fabnet Peak Effective % . | . . . . . . . . . . . . . . . . . . . . Robots Rewired 3 | . . . . . . . . . 2 . . 1 . . . . . . . Allies Hacked 1 | . . . . . . 1 . . . . . . . . . . . . . Hacks Repelled . | . . . . . . . . . . . . . . . . . . . . Allies | -11 -10 -10 -10 -9 -8 -7 -6 -5 -5 -5 -5 -5 -5 -4 -4 -4 -3 -3 -2 -------- Run | Yrd Mat Min Exi Min Mat Fac Fac Fac Gar Fac Upp Upp War Pro Fac DSF Res Tes Res Total Allies 13 | . 1 4 . . . 3 . . 4 . . 1 . . . . . . . Largest Group 5 | . 1 5 5 4 1 3 1 1 4 3 1 2 2 1 1 1 1 1 1 Highest-Rated Group 336 | . 57 132 132 101 73 156 96 101 336 308 116 168 175 141 150 157 199 205 223 Highest-Rated Ally 223 | . 57 61 61 61 73 84 96 101 109 116 116 119 139 141 150 157 199 205 223 Initial Warlord ECA Mod 9 | . . . . . . . . . . . . . . . . . 9 9 8 Total Orders . | . . . . . . . . . . . . . . . . . . . . Ally Attacks 637 | . 9 23 . 50 41 86 11 . 35 22 11 8 12 17 . 11 126 64 111 Total Damage 51452 | . 271 334 . 487 993 3336 1059 . 2274 2637 1132 1504 2153 770 . 938 8786 15242 9536 Kills 284 | . 3 6 . 10 14 29 7 . 17 11 6 6 9 2 . 7 50 73 34 Allies Corrupted . | . . . . . . . . . . . . . . . . . . . . Allies Melted 1 | . . . . . . . . . . . . . . . . . . . 1 Intel | -11 -10 -10 -10 -9 -8 -7 -6 -5 -5 -5 -5 -5 -5 -4 -4 -4 -3 -3 -2 ------- Run | Yrd Mat Min Exi Min Mat Fac Fac Fac Gar Fac Upp Upp War Pro Fac DSF Res Tes Res Active Infowar (turns) 91 | . . 91 . . . . . . . . . . . . . . . . . Sensors 91 | . . 91 . . . . . . . . . . . . . . . . . Robot Analysis Total 1 | . 1 . . . . . . . . . . . . . . . . . . Derelict Logs Recovered 8 | . . . . 2 . . . . . . 2 3 . 1 . . . . . Drone Launches . | . . . . . . . . . . . . . . . . . . . . Drone Recoveries . | . . . . . . . . . . . . . . . . . . . . Exploration | -11 -10 -10 -10 -9 -8 -7 -6 -5 -5 -5 -5 -5 -5 -4 -4 -4 -3 -3 -2 ------------- Run | Yrd Mat Min Exi Min Mat Fac Fac Fac Gar Fac Upp Upp War Pro Fac DSF Res Tes Res Turns Passed 18381 | 60 473 958 228 688 1431 2566 774 165 1107 972 1079 842 1224 532 297 294 2249 1149 1293 Spaces Moved 9322 | 43 291 705 161 428 693 1389 312 93 576 503 600 429 643 252 158 153 917 403 573 Core 18 | 18 . . . . . . . . . . . . . . . . . . . Treads 7860 | 4 . . . 162 693 1389 312 93 576 503 600 429 643 252 158 153 917 403 573 Legs 1444 | 21 291 705 161 266 . . . . . . . . . . . . . . . Wheels . | . . . . . . . . . . . . . . . . . . . . Hover . | . . . . . . . . . . . . . . . . . . . . Flight . | . . . . . . . . . . . . . . . . . . . . Fastest Speed 50 | 50 120 120 120 120 155 155 156 156 156 156 160 160 160 162 162 160 165 165 153 Average Speed 155 | 94 120 120 120 135 155 155 156 156 156 159 160 160 160 170 162 165 183 172 155 Slowest Speed 360 | 160 120 120 120 160 160 235 156 156 156 160 160 160 242 247 162 250 260 360 237 Overloaded Moves . | . . . . . . . . . . . . . . . . . . . . Propulsion Burnouts . | . . . . . . . . . . . . . . . . . . . . Robots Hopped . | . . . . . . . . . . . . . . . . . . . . Potential Cave-ins . | . . . . . . . . . . . . . . . . . . . . Cave-ins Triggered . | . . . . . . . . . . . . . . . . . . . . Exploration Rate (%) 48 | 4 65 99 55 79 72 35 8 5 64 18 67 66 79 47 5 76 32 68 24 Regions Visited 19 Branch Regions 8 Pre-discovered Areas 5 | . . . 1 1 . . . . . . 1 2 . . . . . . . Known Exits Taken 5 | . . . . . . . . 1 . 1 . . . . 1 . 1 1 . Unknown Exits Taken 12 | 1 1 1 1 1 1 1 1 . . . 1 1 1 1 . . . . . Scrap Searched 8 | . . 1 . 1 . . . . . . 2 3 . 1 . . . . . Spaces Dug 76 | . . 28 . 19 . . . . . 3 . 12 . 9 . . . . 5 Terrain Destroyed 603 | . 19 44 . 64 4 24 5 . 38 45 15 55 39 19 . 62 45 90 35 Melee . | . . . . . . . . . . . . . . . . . . . . Projectile 137 | . . . . . 4 19 5 . 12 31 10 21 3 10 . . . 3 19 AOE 466 | . 19 44 . 64 . 5 . . 26 14 5 34 36 9 . 62 45 87 16 Terrain Rammed . | . . . . . . . . . . . . . . . . . . . . Walls Destroyed . | . . . . . . . . . . . . . . . . . . . . Machines Disabled . | . . . . . . . . . . . . . . . . . . . . Actions | -11 -10 -10 -10 -9 -8 -7 -6 -5 -5 -5 -5 -5 -5 -4 -4 -4 -3 -3 -2 --------- Run | Yrd Mat Min Exi Min Mat Fac Fac Fac Gar Fac Upp Upp War Pro Fac DSF Res Tes Res Total 12266 | 59 391 794 196 515 965 1689 567 112 734 622 696 566 823 334 201 190 1306 696 810 Wait 1795 | . 63 57 36 64 155 194 219 16 83 67 74 100 119 45 34 10 224 148 87 Move 9303 | 43 290 704 160 427 692 1388 311 92 574 502 599 428 642 251 157 152 916 402 573 Hop . | . . . . . . . . . . . . . . . . . . . . Pick Up 108 | 6 5 4 . . 21 14 7 . 4 3 1 4 10 1 1 6 11 6 4 Fast Attach 80 | 7 1 1 . 1 12 4 2 . 1 4 1 1 5 1 . 1 18 13 7 Attach 52 | 1 2 . . 1 5 3 2 2 . . 2 3 2 1 4 2 9 7 6 Detach 20 | 1 . . . . 1 . . . . . . . . 1 3 1 6 3 4 Swap 95 | . 2 8 . 8 10 10 4 2 4 8 4 3 10 1 1 1 5 8 6 Drop 150 | 1 4 5 . 1 26 17 7 . 4 8 3 3 21 2 1 8 18 13 8 Fire 597 | . 24 13 . 12 42 53 15 . 34 30 12 14 14 31 . 9 97 86 111 Melee . | . . . . . . . . . . . . . . . . . . . . Ram . | . . . . . . . . . . . . . . . . . . . . Kick 2 | . . 2 . . . . . . . . . . . . . . . . . Crush 18 | . . . . 1 1 6 . . . . . . . . . . 2 4 4 Escape Stasis 13 | . . . . . . . . . 7 . . . . . . . . 6 . Rewire 33 | . . . . . . . . . 23 . . 10 . . . . . . . Trap . | . . . . . . . . . . . . . . . . . . . . Miscellaneous . | . . . . . . . . . . . . . . . . . . . . Route ------- -11/Scrapyard -10/Materials -10/Mines (discovered 4 exits: [*Mat x2] / *Exi / [*Sub]) -10/Exiles -9/Mines -8/Materials -7/Factory (discovered 2 exits: *Fac / *Low) -6/Factory (discovered 3 exits: *Fac / Low x2) -5/Factory -5/Garrison (discovered 3 exits: *Fac x3) -5/Factory (discovered 4 exits: *Upp x2 / Ext x2) -5/Upper Caves -5/Upper Caves -5/Warlord -4/Proximity Caves -4/Factory (discovered 2 exits: Res / DSF) -4/DSF -3/Research (discovered 3 exits: Res / Arm / *Tes) -3/Testing -2/Research History --------- Turn | Location | Event 3 | -11/Scrapyard | Discovered new exit (range 15) 61 | -11/Scrapyard | Entered Materials 301 | -10/Materials | Build established: Mutant 418 | -10/Materials | Discovered new exit (range 16) 534 | -10/Materials | Entered Mines 652 | -10/Mines | Found a damaged Exp. Sensor Array with a note attached 655 | -10/Mines | Found Prototype Device 655 | -10/Mines | Identified Exp. Sensor Array 723 | -10/Mines | Discovered new exit (range 7) 820 | -10/Mines | Assisted by bots powering up and referring to "LRC-V3" 952 | -10/Mines | Discovered new exit (range 4) 996 | -10/Mines | Discovered new exit (range 5) 1108 | -10/Mines | Escorted by a lone wolf Derelict 1476 | -10/Mines | Deemed a non-threat by the Exiles lab entrance 1476 | -10/Mines | Discovered new exit (range 5) 1492 | -10/Mines | Entered Exiles 1492 | -10/Exiles | Accompanied by 4 allies 1521 | -10/Exiles | Met 8R-AWN 1542 | -10/Exiles | Met EX-HEX 1579 | -10/Exiles | Met EX-BIN 1634 | -10/Exiles | Met EX-DEC 1641 | -10/Exiles | Learned location of Zion (-6) 1677 | -10/Exiles | Discovered new exit (range 10) 1720 | -10/Exiles | Entered Mines 1720 | -9/Mines | Accompanied by 3 allies 1721 | -9/Mines | Assembled infested the area 1772 | -9/Mines | Met a Derelict bent on vengeance 2122 | -9/Mines | Core integrity fell below 50% 2127 | -9/Mines | Learned Materials security intel 2375 | -9/Mines | Found a hidden stash of uninstalled traps 2383 | -9/Mines | Learned location of Storage (-9) 2392 | -9/Mines | Discovered new exit (range 9) 2408 | -9/Mines | Entered Materials 2408 | -8/Materials | Evolved 4 slots: Propulsion x1, Utility x2, Weapon x1 2787 | -8/Materials | Central database locked down 3273 | -8/Materials | Repaired Lgt. Cannon 3573 | -8/Materials | Build established: Tank 3615 | -8/Materials | Garrison activated, responded to threat 3712 | -8/Materials | Discovered new exit (range 16) 3839 | -8/Materials | Entered Factory 3839 | -7/Factory | Evolved 2 slots: Utility x2 3974 | -7/Factory | Central database locked down 4155 | -7/Factory | Fabricated Mass Driver (x2) 4223 | -7/Factory | Discovered new exit (range 15) 4247 | -7/Factory | Identified exit to Lower Caves 4710 | -7/Factory | Garrison activated, responded to threat 4728 | -7/Factory | Cargo convoy interrupted 5327 | -7/Factory | Garrison activated, responded to threat 5558 | -7/Factory | P-60 Hacker assimilated hostile O-24 Administrator 5839 | -7/Factory | First assault squad dispatched 6085 | -7/Factory | Repaired Lgt. Deuterium Engine 6314 | -7/Factory | Discovered new exit (range 15) 6405 | -7/Factory | Entered another Factory area 6405 | -6/Factory | Evolved 2 slots: Propulsion x1, Utility x1 6789 | -6/Factory | Repaired Mass Driver 7122 | -6/Factory | Identified exit to Lower Caves 7151 | -6/Factory | Discovered new exit (range 15) 7179 | -6/Factory | Entered another Factory area 7179 | -5/Factory | Evolved 2 slots: Utility x1, Weapon x1 7338 | -5/Factory | Identified exit to Garrison 7344 | -5/Factory | Entered Garrison 7444 | -5/Garrison | Triggered checkpoint 7517 | -5/Garrison | Spotted B-75 Beast 7534 | -5/Garrison | Destroyed B-75 Beast 7536 | -5/Garrison | Triggered checkpoint 7565 | -5/Garrison | Triggered checkpoint 7570 | -5/Garrison | Triggered checkpoint 7681 | -5/Garrison | Discovered new exit (range 10) 7714 | -5/Garrison | Triggered checkpoint 7954 | -5/Garrison | Triggered checkpoint 8049 | -5/Garrison | Rescued a captive Derelict 8051 | -5/Garrison | Rescued a captive Derelict 8107 | -5/Garrison | Discovered new exit (range 3) 8111 | -5/Garrison | Attempted to access garrison exit controls, blocked by remote lockdown 8232 | -5/Garrison | Triggered checkpoint 8301 | -5/Garrison | Discovered new exit (range 10) 8318 | -5/Garrison | Spotted Executioner 8318 | -5/Garrison | Spotted Executioner 8336 | -5/Garrison | Destroyed Executioner 8336 | -5/Garrison | Allies destroyed Executioner 8347 | -5/Garrison | Found Prototype Processor 8347 | -5/Garrison | Identified Exp. Core Analyzer 8361 | -5/Garrison | Rewired Striker 8377 | -5/Garrison | Rewired Striker 8451 | -5/Garrison | Entered Factory 8451 | -5/Factory | Accompanied by 2 allies 8546 | -5/Factory | Spotted B-75 Beast 8558 | -5/Factory | Destroyed B-75 Beast 8880 | -5/Factory | Build established: Scavenger-Tank 9160 | -5/Factory | Identified exit to Upper Caves 9160 | -5/Factory | Identified exit to Extension 9351 | -5/Factory | First assault squad dispatched 9423 | -5/Factory | Entered Upper Caves 9600 | -5/Upper Caves | Encountered a Warlord checkpoint 9616 | -5/Upper Caves | Learned Factory emergency access door positions 9684 | -5/Upper Caves | Attracted the attention of an 0b10 checkpoint 10301 | -5/Upper Caves | Discovered new exit (range 6) 10433 | -5/Upper Caves | Attracted the attention of an 0b10 base 10460 | -5/Upper Caves | Learned location of Extension (-5) 10460 | -5/Upper Caves | Learned Factory trap positions 10460 | -5/Upper Caves | Learned Research trap positions 10502 | -5/Upper Caves | Entered another Upper Caves area 10706 | -5/Upper Caves | Build established: Scavenger-Gunner 10983 | -5/Upper Caves | Attracted the attention of an 0b10 checkpoint 11107 | -5/Upper Caves | Learned location of 1 exit from Factory 11123 | -5/Upper Caves | Learned location of Warlord (-5) 11255 | -5/Upper Caves | Attracted the attention of an 0b10 outpost 11303 | -5/Upper Caves | Discovered new exit (range 13) 11344 | -5/Upper Caves | Entered Warlord 11344 | -5/Warlord | Accompanied by 1 ally 11414 | -5/Warlord | System corruption cleaned by Quarantine Array 11667 | -5/Warlord | Warlord's base attacked by MAIN.C 11683 | -5/Warlord | Found Prototype Energy Gun 11683 | -5/Warlord | Identified Vortex Rail 11691 | -5/Warlord | Found Prototype Launcher 11729 | -5/Warlord | Found Vortex Rail 11888 | -5/Warlord | Met Warlord 11948 | -5/Warlord | Found Prototype Reactor 12017 | -5/Warlord | Warlord forces counterattacked 12026 | -5/Warlord | Build established: Gunner 12309 | -5/Warlord | Found Prototype Ballistic Cannon 12309 | -5/Warlord | Identified Hvy. Autocannon 12342 | -5/Warlord | Warlord base infiltrated, sounded retreat 12385 | -5/Warlord | Lost 3 allies 12423 | -5/Warlord | Spotted Executioner 12456 | -5/Warlord | Discovered new exit (range 14) 12467 | -5/Warlord | Spotted Striker 12467 | -5/Warlord | Spotted B-75 Beast 12467 | -5/Warlord | Spotted Executioner 12477 | -5/Warlord | Spotted B-86 Titan 12480 | -5/Warlord | Destroyed B-75 Beast 12486 | -5/Warlord | Destroyed B-86 Titan 12488 | -5/Warlord | Destroyed Executioner 12500 | -5/Warlord | Core integrity fell below 50% 12500 | -5/Warlord | Destroyed Striker 12525 | -5/Warlord | Lost 3 allies 12526 | -5/Warlord | Destroyed 10 combat bots 12567 | -5/Warlord | Spotted Striker 12568 | -5/Warlord | Entered Proximity Caves 12617 | -4/Proximity Caves | Build established: Scavenger-Gunner 12843 | -4/Proximity Caves | Spotted B-86 Titan 12868 | -4/Proximity Caves | Allies destroyed B-86 Titan 13052 | -4/Proximity Caves | Learned location of 1 exit from Research 13093 | -4/Proximity Caves | Discovered new exit (range 5) 13100 | -4/Proximity Caves | Entered Factory 13100 | -4/Factory | Evolved 2 slots: Power x1, Propulsion x1 13101 | -4/Factory | Identified exit to Research 13102 | -4/Factory | Loaded intel: 102 trap records 13105 | -4/Factory | Identified Vortex Chain Reactor 13395 | -4/Factory | Build established: Scavenger-Mutant 13396 | -4/Factory | Identified exit to DSF 13397 | -4/Factory | Entered DSF 13437 | -4/DSF | Additional patrols routed to DSF 13458 | -4/DSF | Discovered exit to Research (range 15) 13563 | -4/DSF | Sterilization system engaged 13583 | -4/DSF | Ambient heat levels rising (+10) 13598 | -4/DSF | Ambient heat levels rising (+10) 13613 | -4/DSF | Ambient heat levels rising (+10) 13628 | -4/DSF | Ambient heat levels rising (+10) 13643 | -4/DSF | Ambient heat levels rising (+10) 13658 | -4/DSF | Ambient heat levels rising (+10) 13673 | -4/DSF | Ambient heat levels rising (+10) 13688 | -4/DSF | Ambient heat levels rising (+10) 13691 | -4/DSF | Entered Research 13691 | -3/Research | Evolved 2 slots: Power x1, Utility x1 13692 | -3/Research | Identified exit to Armory 13693 | -3/Research | Identified exit to Research 13694 | -3/Research | Loaded intel: 65 trap records 13864 | -3/Research | Build established: Mutant 13875 | -3/Research | Spotted B-86 Titan 13936 | -3/Research | Allies destroyed B-86 Titan 14520 | -3/Research | Build established: Scavenger-Tank 14625 | -3/Research | Found Imp. Powered Armor 14658 | -3/Research | Garrison activated, responded to threat 14691 | -3/Research | First assault squad dispatched 15328 | -3/Research | Central database locked down 15552 | -3/Research | Discovered new exit (range 7) 15563 | -3/Research | Identified exit to Testing 15940 | -3/Research | Entered Testing 15986 | -3/Testing | Found Prototype Leg 15986 | -3/Testing | Identified Myomer Exoskeleton 16056 | -3/Testing | System corruption reached 10% 16107 | -3/Testing | Found Portable AFG 16139 | -3/Testing | Identified Vortex Catalyst Activator 16190 | -3/Testing | First assault squad dispatched 16404 | -3/Testing | Found Prototype Protection 16404 | -3/Testing | Identified Centrium Heavy Armor Plating 16538 | -3/Testing | Spotted Striker 16792 | -3/Testing | High security lockdown imminent 16804 | -3/Testing | Spotted PH-R72KXNA5G8 16826 | -3/Testing | Scanned by Researcher 16826 | -3/Testing | Spotted PG-TMCO0V7K4D 16830 | -3/Testing | Allies destroyed PH-R72KXNA5G8 16842 | -3/Testing | Destroyed PG-TMCO0V7K4D 16863 | -3/Testing | Lost 3 parts (1u2w) 16872 | -3/Testing | High security lockdown engaged 16872 | -3/Testing | Found Gamma Bomb Array 16875 | -3/Testing | Found Gamma Bomb Array 16924 | -3/Testing | Spotted Executioner 16950 | -3/Testing | Core integrity fell below 50% 16955 | -3/Testing | Allies destroyed Executioner 16970 | -3/Testing | Destroyed 17 combat bots 17001 | -3/Testing | Garrison activated, responded to threat 17001 | -3/Testing | Spotted Executioner 17001 | -3/Testing | Spotted Investigator 17004 | -3/Testing | Destroyed Investigator 17008 | -3/Testing | Destroyed Executioner 17049 | -3/Testing | Destroyed 12 combat bots 17053 | -3/Testing | Discovered exit to Research (range 14) 17089 | -3/Testing | Entered Research 17089 | -2/Research | Warlord forces began assault on 0b10 17089 | -2/Research | Evolved 2 slots: Propulsion x1, Utility x1 17114 | -2/Research | Distinguished unit "Offensive Angels" dispatched to help 17129 | -2/Research | High security lockdown imminent 17191 | -2/Research | Met up with Warlord 17192 | -2/Research | Spotted B-90 Cyclops 17199 | -2/Research | Research machine network offline 17209 | -2/Research | High security lockdown engaged 17463 | -2/Research | Borebot progress halted 17475 | -2/Research | Lost 4 allies 17564 | -2/Research | Met DD-05H 17625 | -2/Research | Warlord destroyed during the assault 17770 | -2/Research | Borebot progress halted 17912 | -2/Research | Spotted Executioner 17916 | -2/Research | Spotted Executioner 17923 | -2/Research | Allies destroyed Executioner 17925 | -2/Research | Spotted Executioner 17933 | -2/Research | Destroyed Executioner 17939 | -2/Research | Spotted Striker 17961 | -2/Research | Destroyed Striker 17966 | -2/Research | Allies destroyed Executioner 17977 | -2/Research | Spotted Striker 17977 | -2/Research | Spotted Executioner 17986 | -2/Research | Destroyed Striker 17990 | -2/Research | Destroyed Executioner 18022 | -2/Research | Destroyed 10 combat bots 18057 | -2/Research | Spotted Executioner 18069 | -2/Research | Destroyed Executioner 18085 | -2/Research | System corruption reached 10% 18110 | -2/Research | Destroyed 8 combat bots 18153 | -2/Research | Borebot progress halted 18197 | -2/Research | Spotted Striker 18197 | -2/Research | Spotted Executioner 18210 | -2/Research | Destroyed Striker 18215 | -2/Research | Allies destroyed Executioner 18238 | -2/Research | Destroyed 7 combat bots 18334 | -2/Research | Core integrity fell below 50% 18370 | -2/Research | Core integrity fell below 20% 18373 | -2/Research | Spotted Striker 18376 | -2/Research | Spotted Striker 18382 | -2/Research | Core destroyed Last Messages --------------- 18335_ G-73 Enforcer destroyed. 18337_ Destroyed Lgt. Quantum Reactor. 18338_ System corrupted: Matter fused (-5). 18339_ G-73 Enforcer destroyed. 18347_ Slug penetrates G-73 Enforcer. 18347_ G-73 Enforcer knocked back. 18350_ G-73 Enforcer destroyed. 18354_ System corrupted: IFF burst signal emitted. 18358_ Player 2 drops Lrg. Storage Unit. 18358_ Player 2 removes Graphene Brace. 18359_ Player 2 removes Mic. Antimatter Reactor. 18360_ Player 2 drops Mic. Antimatter Reactor. 18360_ Player 2 attaches Graphene Brace. 18369_ System corrupted: Matter fused (-9). 18378_ Vortex Chain Reactor destroyed. 18378_ Centrium Heavy Armor Plating destroyed. 18380_ Imp. Remote Shield blasted off. 18381_ Ended siege mode. Map ----- +----------------------------------------------------+ | #????????????# #?# # | | #????????????# #?# """ # | | #????????????# #?#* """ # | | #????????????# = #?# """ # | | #????????????# ![[! #?# # | | #??????????????# %=!!###???? # | | #??????????????# % %=|"######"/"#### | | #??????????????# *[[=! ! | | ####+#################????#" [ *= =! | | ?# + """T""" = #?##?#" [ !%!%=[= =! | | ?# # #? ##" ![%[[ %% !=! | | ?# + #?# ##! !!=![#=% """###### | | ?# # #?# # % *=### # #?? | | ?# # ] #?# %[ ##?# # #?? | | ?# # ### *[ #?# / #?? | | ## #####+##########;%;# =] #### # # | | ! !! =] = ; / " | | =%== *!! ; # "!* | | !/ */* %| % ] # " * | | !| =%%%% !=!= !!! "! | | ## ####+####; ; =% !=%/*!%= [ !!! """ | | # # # ; =%* % *!=% ! !!! " | | # # ; ; =* [ / = ==[%= [ # # | | + + ; ; = / [ = ![%*[ # ] ### | | # # ; =;!%%= =!! / %%%;#######?? | | # #?"" ; =!= |@%% * =%!%[ % #?####?## | | # #?""% ; ;%% [% =%!%% ; | | #? #?"" ! ; !=%% "" | *== =; | | # # ; =%%%"" [= % #!%! | | ## #? ! ; ;;### # !% = [ !! | | #?#######; = ; ####### / ? | | #???????## ; ##?????#" # ? | | #????????# " #??????## [ #""####### | | #????????# ###???????# [% ; ######### | | ## #????????# #?????#####% ! KK | | # #????????# #######""##%" # | | # #????????# # """ #" # ######### | | # +????????" # ""T"" # ##"###???????# | | # #????????# # "" "" " % #?##?????????# | | # #????????# # # #????????????# | | ## #????????# / # #????????????# | | # #????????# " # #????????????# | | #????????# # = # #????????????# | | ########## # # #????????????# | | ###/#############????????????# | | #?# #????????????????????????? | | [ ### #????????????????????????? | | # # ####?????????????????????? | | ** ## # # # # # #? ???????????????????? | | # * ## # ## # ???????????????????? | +----------------------------------------------------+ Best States ------------- Heat Dissipation 113 Energy Generation 73 Energy Capacity 2300 Matter Stores 300 Matter Capacity 300 Sight Range 16 Robot Scan Range 20 Terrain Scan Density 10 Armor Coverage 2000 Resistance: KI 20 Resistance: TH 10 Weapon Cycling 30 Evasion (%) 55 Targeting Accuracy 12 Target Analysis 12 Core Analysis 8 Recoil Reduction 6 Matter Filtering 50 Kinecelleration 40 Item Schematics ----------------- None Robot Schematics ------------------ None Fabricated ------------ Mass Driver | x2 | -7/Factory | Preloaded Repaired ---------- Lgt. Cannon | 28% | -8/Materials Lgt. Deuterium Engine | 16% | -7/Factory Mass Driver | 56% | -6/Factory Studied --------- Grenade Launcher | -8/Materials | Hacked Assault Cannon | -7/Factory | Hacked Hvy. Rocket Launcher | -5/Factory | Hacked Gamma Rifle | -3/Research | Hacked Hyb. Antimatter Reactor | -3/Research | Hacked Quantum Rifle | -3/Research | Hacked Alien Tech Used ----------------- None Achievements -------------- Doshington Challenges ------------ None Player 2 | -11 -10 -10 -10 -9 -8 -7 -6 -5 -5 -5 -5 -5 -5 -4 -4 -4 -3 -3 -2 ---------- Run | Yrd Mat Min Exi Min Mat Fac Fac Fac Gar Fac Upp Upp War Pro Fac DSF Res Tes Res Slots Evolved 16 | . . . . 4 2 2 2 . . . . . . 2 . 2 . 2 . Power 2 | . . . . . 1 . . . . . . . . . . . . 1 . Propulsion 3 | . . . . 3 . . . . . . . . . . . . . . . Utility 8 | . . . . 1 . 1 1 . . . . . . 2 . 2 . 1 . Weapon 3 | . . . . . 1 1 1 . . . . . . . . . . . . Parts Attached 269 | . 8 2 . 4 19 19 29 1 10 25 5 14 13 6 3 10 61 13 27 Parts Lost 69 | . . . . . 2 4 3 . 4 1 2 5 6 1 . . 8 6 27 Damage Taken 15350 | . 31 73 . 231 190 1081 304 . 631 433 338 380 1615 206 . 405 2274 1898 5260 Core 2496 | . 21 16 . 50 . 145 40 . 66 35 39 39 186 18 . 12 216 238 1375 Player 2/Cogmind (%) 76 | . 100 37 . 53 . 68 100 . 48 100 52 100 78 31 . 100 85 46 94 Absorbed by Shields 4618 | . . . . . . . 51 . 177 . . . . . . 279 1413 1349 1349 Damage Inflicted 50242 | . 271 208 . 260 993 2700 1059 . 2234 2456 1132 1504 2153 770 . 938 8786 15242 9536 Player 2/Cogmind (%) 54 | . 40 42 . 39 44 47 56 . 57 60 55 54 51 31 . 41 62 57 51 Combat Hostiles Destroyed 203 | . 1 3 . 4 9 18 5 . 15 5 6 6 9 2 . 7 38 46 29 Player 2/Cogmind (%) 47 | . 16 42 . 33 45 58 50 . 55 29 33 46 47 22 . 63 61 48 41 Game ------ Seed NeutrinoIonBeam Manual? 0 Play Time 03:12:09 Cumulative 454.3 hours Start 2026.02.01 @ 00:48:51 End 2026.02.01 @ 16:27:25 Sessions 4 Manual Loads 0 Difficulty Rogue Special Mode AFD2020/Player2 Game No. 216 Rogue 216 Adventurer 0 Explorer 0 Win Type - Total 13 Types 9/0/2/0/0/0/0/1/0/1 Lore% 85 Gallery% 82 Achievement% 62 Wizard Run 0 Options --------- Layout 1 ASCII 0 Keyboard 0 Movement Mouse Keybinds 0 Fullscreen 1 Font 24/Smallcaps Map View 50x35 Zoom Use 0% Tactical HUD 1 Map Filters NONE Filters NONE Steam 1 RUN: e4921346-b025-429d-9ca0-0f372d05a74b